bitfinex-derivatives/quotes_BTCF0:USTF0_20260106
["timestamp","ask_amount","ask_price","bid_price","bid_amount"]
[1767716077357,0.14929497,93546.0,93516.0,0.09092]
[1767716077358,0.11774384,93538.0,93516.0,0.09092]
[1767716079544,0.01923963,93536.0,93516.0,0.09092]
[1767716079754,0.09850421,93533.0,93515.0,9.92e-05]
[1767716079947,0.09850421,93531.0,93515.0,9.92e-05]
[1767716080150,0.01923963,93530.0,93515.0,9.92e-05]
[1767716080456,0.11774384,93530.0,93515.0,9.92e-05]
[1767716080766,0.09850421,93530.0,93515.0,9.92e-05]
[1767716081058,0.02237834,93529.0,93515.0,9.92e-05]
[1767716081356,0.11774384,93535.0,93515.0,9.92e-05]
[1767716081659,0.12088222,93534.0,93515.0,9.92e-05]
[1767716081953,0.02237801,93533.0,93515.0,9.92e-05]
[1767716082558,0.12088222,93533.0,93515.0,9.92e-05]
[1767716082747,0.02237801,93532.0,93515.0,9.92e-05]
[1767716082947,0.12088222,93532.0,93515.0,9.92e-05]
[1767716083147,0.02237801,93531.0,93515.0,9.92e-05]
[1767716084652,0.14012185,93531.0,93515.0,9.92e-05]
[1767716084848,0.02237801,93530.0,93515.0,9.92e-05]
[1767716088157,0.12088222,93530.0,93515.0,9.92e-05]
[1767716088359,0.02237801,93529.0,93515.0,9.92e-05]
[1767716090359,0.05837497,93546.0,93515.0,9.92e-05]
[1767716090360,0.02237801,93528.0,93515.0,9.92e-05]
[1767716090559,0.02237801,93527.0,93515.0,9.92e-05]
[1767716090759,0.02237801,93526.0,93515.0,9.92e-05]
[1767716091063,0.11774384,93534.0,93515.0,9.92e-05]
[1767716091251,0.09850421,93532.0,93515.0,9.92e-05]
[1767716091451,0.01923963,93531.0,93515.0,9.92e-05]
[1767716091661,0.09850421,93530.0,93515.0,9.92e-05]
[1767716091861,0.11774384,93530.0,93515.0,9.92e-05]
[1767716092262,0.11774384,93530.0,93515.0,0.0107952]
[1767716093054,0.11774384,93530.0,93517.0,0.010695]
[1767716093252,0.11774384,93530.0,93515.0,9.92e-05]
[1767716093654,0.11774384,93530.0,93518.0,0.010695]
[1767716094169,0.24784943,93536.0,93518.0,0.010695]
[1767716094359,0.24784943,93536.0,93515.0,0.0107952]
[1767716094556,0.26708906,93536.0,93515.0,0.0107952]
[1767716094755,0.01923963,93534.0,93515.0,9.92e-05]
[1767716094959,0.11774384,93534.0,93515.0,9.92e-05]
[1767716095360,0.01923963,93533.0,93515.0,9.92e-05]
[1767716095564,0.09850421,93532.0,93518.0,0.010695]
[1767716095968,0.05838522,93536.0,93515.0,9.92e-05]
[1767716096158,0.01923963,93537.0,93520.0,0.010695]
[1767716096760,0.09458989,93560.0,93519.0,0.00675841]
[1767716096761,0.09239397,93559.0,93519.0,0.00675841]
[1767716097065,0.09239397,93545.0,93525.0,0.00675841]
[1767716097268,0.09239397,93555.0,93531.0,0.09912291]
[1767716097467,0.05919797,93559.0,93542.0,0.010693]
[1767716097766,0.09239397,93561.0,93536.0,0.09912291]
[1767716097963,0.09239397,93568.0,93541.0,0.00722832]
[1767716098163,0.151792,93568.0,93544.0,0.00722832]
[1767716098363,0.09239397,93567.0,93546.0,0.010692]
[1767716098565,0.09239397,93567.0,93545.0,0.101652]
[1767716098758,0.11178217,93567.0,93545.0,0.101652]
[1767716099359,0.09239397,93567.0,93548.0,0.00702144]
[1767716099561,0.00213747,93569.0,93550.0,0.01771344]
[1767716100357,0.00213747,93569.0,93524.0,0.00683388]
[1767716100358,0.0193882,93552.0,93524.0,0.00683388]
[1767716100556,0.4,93568.0,93528.0,0.010694]
[1767716100557,0.11178217,93551.0,93528.0,0.010694]
[1767716100857,0.11178217,93549.0,93530.0,0.010694]
[1767716101163,0.11178217,93549.0,93525.0,0.09779388]
[1767716101164,0.11178217,93549.0,93532.0,0.010694]
[1767716101471,0.11178217,93549.0,93525.0,0.09096]
[1767716101472,0.01938555,93554.0,93531.0,0.00623963]
[1767716101665,0.09536286,93562.0,93540.0,0.010693]
[1767716101967,0.01938555,93561.0,93541.0,0.09096]
[1767716102175,0.09536286,93566.0,93551.0,0.010691]
[1767716102474,0.00213747,93569.0,93555.0,0.010691]
[1767716102656,0.09536286,93574.0,93552.0,0.00540134]
[1767716102967,0.01938555,93582.0,93554.0,0.00540134]
[1767716103168,0.11820522,93581.0,93559.0,0.01069]
[1767716103362,0.11820522,93580.0,93559.0,0.01069]
[1767716103562,0.02284236,93579.0,93559.0,0.01069]
[1767716103866,0.09536286,93580.0,93551.0,0.09096]
[1767716103867,0.02284236,93578.0,93563.0,0.01069]
[1767716104167,0.09536286,93586.0,93564.0,0.09096]
[1767716104374,0.11474841,93586.0,93564.0,0.09096]
[1767716104775,0.11474841,93586.0,93570.0,0.010689]
[1767716104776,0.09536286,93586.0,93570.0,0.010689]
[1767716105072,0.01938555,93591.0,93570.0,0.010689]
[1767716105260,0.11474841,93591.0,93565.0,0.00591056]
[1767716105466,0.13109875,93591.0,93567.0,0.01069]
[1767716105667,0.09536286,93590.0,93567.0,0.01069]
[1767716106074,0.09536286,93582.0,93564.0,0.09096]
[1767716106275,0.09536286,93578.0,93565.0,0.09092]
[1767716106566,0.11474841,93578.0,93566.0,0.09092]
[1767716106768,0.11474841,93578.0,93567.0,0.09092]
[1767716107168,0.11474841,93576.0,93567.0,0.07122704]
[1767716107367,0.09536286,93560.0,93531.0,0.09793649]
[1767716107565,0.09536286,93556.0,93532.0,0.09092]
[1767716107766,0.09536286,93556.0,93536.0,0.010693]
[1767716108763,0.09536286,93556.0,93538.0,0.010693]
[1767716108963,0.09536286,93561.0,93538.0,0.010693]
[1767716109163,0.09536286,93561.0,93533.0,0.11677387]
[1767716109164,0.09536286,93561.0,93540.0,0.010693]
[1767716110467,0.09536286,93561.0,93534.0,0.01883738]
[1767716110468,0.09536286,93561.0,93542.0,0.010692]
[1767716110673,0.09536286,93561.0,93543.0,0.09092]
[1767716111166,0.11474841,93561.0,93543.0,0.09092]
[1767716111371,0.09536286,93561.0,93544.0,0.010692]
[1767716111669,0.09536286,93568.0,93550.0,0.13727442]
[1767716111874,0.09536286,93568.0,93550.0,0.11727442]
[1767716112074,0.09536286,93560.0,93543.0,0.09092]
[1767716113176,0.09536286,93556.0,93539.0,0.00213816]
[1767716113479,0.09536286,93550.0,93544.0,0.09092]
[1767716113974,0.11474841,93557.0,93544.0,0.09092]
[1767716114564,0.09536286,93547.0,93525.0,0.905494]
[1767716114777,0.09536286,93547.0,93526.0,0.09092]
[1767716115170,0.09536286,93541.0,93519.0,0.010695]
[1767716115381,0.11474841,93541.0,93520.0,0.09092]
[1767716116765,0.01938555,93538.0,93511.0,0.01883738]
[1767716116971,0.01938555,93544.0,93519.0,0.02953238]
[1767716117268,0.09536286,93546.0,93521.0,0.010695]
[1767716117269,0.02266813,93543.0,93521.0,0.010695]
[1767716117579,0.11030555,93550.0,93519.0,0.02953238]
[1767716117580,0.09536286,93540.0,93519.0,0.02953238]
[1767716118372,0.01938555,93547.0,93523.0,0.010695]
[1767716118573,0.02267421,93546.0,93523.0,0.010695]
[1767716118871,0.02267421,93545.0,93522.0,0.01883738]
[1767716119077,0.02267421,93544.0,93525.0,0.010694]
[1767716119278,0.09536286,93548.0,93526.0,0.09092]
[1767716119479,0.0226773,93547.0,93526.0,0.09092]
[1767716119674,0.0226773,93546.0,93528.0,0.01883738]
[1767716119984,0.09092,93553.0,93529.0,0.01883738]
[1767716120280,0.02267374,93552.0,93529.0,0.01883738]
[1767716120483,0.02267374,93551.0,93529.0,0.01883738]
[1767716120681,0.02267374,93550.0,93529.0,0.01883738]
[1767716121473,0.1180366,93550.0,93529.0,0.01883738]
[1767716121672,0.02267374,93549.0,93529.0,0.01883738]
[1767716122185,0.02267374,93549.0,93529.0,0.02953138]
[1767716122385,0.02267374,93549.0,93530.0,0.01883738]
[1767716122577,0.02267374,93548.0,93530.0,0.01883738]
[1767716122883,0.02267374,93547.0,93530.0,0.01883738]
[1767716123082,0.02267374,93546.0,93530.0,0.01883738]
[1767716123283,0.02267374,93545.0,93530.0,0.01883738]
[1767716123485,0.09536286,93552.0,93530.0,0.01883738]
[1767716123680,0.02269087,93551.0,93530.0,0.01883738]
[1767716123882,0.11805373,93550.0,93528.0,0.09793649]
[1767716124179,0.11805373,93549.0,93526.0,0.08092]
[1767716124374,0.02269087,93548.0,93526.0,0.08092]
[1767716124574,0.02269087,93548.0,93527.0,0.010694]
[1767716125086,0.02269087,93548.0,93527.0,0.01883738]
[1767716125794,0.02269087,93548.0,93529.0,0.11677387]
[1767716125981,0.09536286,93555.0,93536.0,0.010693]
[1767716126187,0.09536286,93555.0,93537.0,0.09092]
[1767716126880,0.09536286,93555.0,93532.0,0.09793649]
[1767716126881,0.09536286,93547.0,93521.0,0.01883738]
[1767716127181,0.11474841,93545.0,93522.0,0.09092]
[1767716127378,0.11474841,93545.0,93522.0,0.08292]
[1767716127585,0.09536286,93543.0,93522.0,0.08292]
[1767716127981,0.09536286,93543.0,93523.0,0.010695]
[1767716128292,0.09536286,93543.0,93522.0,0.08292]
[1767716128293,0.09536286,93537.0,93522.0,0.06879046]
[1767716129085,0.01938555,93541.0,93522.0,0.06879046]
[1767716129279,0.01938555,93541.0,93520.0,0.01883738]
[1767716129591,0.01938555,93541.0,93521.0,0.09092]
[1767716129880,0.11474841,93544.0,93521.0,0.09092]
[1767716130086,0.09536286,93542.0,93521.0,0.101615]
[1767716130486,0.09536286,93542.0,93523.0,0.010695]
[1767716130686,0.09536286,93548.0,93524.0,0.01883738]
[1767716130883,0.09536286,93548.0,93525.0,0.01883738]
[1767716131583,0.09751827,93555.0,93535.0,0.010693]
[1767716131789,0.09751827,93555.0,93536.0,0.09092]
[1767716132087,0.09751827,93555.0,93537.0,0.010693]
[1767716132781,0.09751827,93555.0,93536.0,0.09092]
[1767716133486,0.09751827,93555.0,93537.0,0.010693]
[1767716133687,0.09751827,93555.0,93536.0,0.09092]
[1767716135192,0.09751827,93555.0,93536.0,0.06892]
[1767716135486,0.09751827,93562.0,93539.0,0.0202327]
[1767716135695,0.1169223,93558.0,93540.0,0.010693]
[1767716136083,0.1169223,93564.0,93538.0,0.0202327]
[1767716136281,0.01940403,93561.0,93537.0,0.09504212]
[1767716136589,0.09092,93568.0,93538.0,0.010693]
[1767716136590,0.09751827,93556.0,93538.0,0.010693]
[1767716136787,0.09751827,93552.0,93536.0,0.06892]
[1767716136978,0.09092,93568.0,93525.0,0.09504212]
[1767716136979,0.09751827,93542.0,93525.0,0.81644]
[1767716137175,0.09751827,93542.0,93530.0,0.1098206]
[1767716137591,0.09751827,93542.0,93531.0,0.09092]
[1767716138085,0.09751827,93542.0,93519.0,0.1203]
[1767716138086,0.1169223,93533.0,93519.0,0.1203]
[1767716138293,0.09751827,93531.0,93520.0,0.2007406]
[1767716138594,0.09751827,93531.0,93521.0,0.09092]
[1767716138893,0.09751827,93531.0,93519.0,0.1203]
[1767716139080,0.1169223,93537.0,93520.0,0.09092]
[1767716139283,0.09751827,93535.0,93519.0,0.1203]
[1767716139585,0.1169223,93528.0,93515.0,9.92e-05]
[1767716139890,0.02251788,93527.0,93516.0,0.09092]
[1767716140087,0.02251633,93526.0,93516.0,0.09092]
[1767716140283,0.01940403,93534.0,93516.0,0.09092]
[1767716140485,0.02251452,93533.0,93516.0,0.09092]
[1767716140800,0.02251452,93532.0,93517.0,0.010695]
[1767716140988,0.02251452,93531.0,93517.0,0.010695]
[1767716141192,0.02251452,93530.0,93517.0,0.010695]
[1767716141387,0.02251452,93529.0,93517.0,0.010695]
[1767716141590,0.02251452,93528.0,93517.0,0.010695]
[1767716141786,0.02251452,93527.0,93516.0,0.09092]
[1767716141985,0.13943682,93526.0,93516.0,0.05067162]
[1767716142186,0.02251452,93525.0,93509.0,0.00213884]
[1767716142392,0.0225109,93524.0,93513.0,0.09092]
[1767716142689,0.1169223,93526.0,93513.0,0.09092]
[1767716142891,0.1169223,93526.0,93513.0,0.07792]
[1767716142892,0.0225109,93525.0,93513.0,0.07792]
[1767716143089,0.0225109,93524.0,93513.0,0.07792]
[1767716143393,8.367e-05,93524.0,93513.0,0.07792]
[1767716143696,0.02251062,93523.0,93513.0,0.07792]
[1767716143896,8.367e-05,93524.0,93513.0,0.07792]
[1767716144196,0.02251061,93523.0,93513.0,0.07792]
[1767716144397,0.01940403,93531.0,93513.0,0.07792]
[1767716144696,0.02251192,93530.0,93513.0,0.07792]
[1767716144894,0.02251192,93529.0,93513.0,0.07792]
[1767716145089,0.02251192,93528.0,93513.0,0.07792]
[1767716145291,0.02251192,93527.0,93513.0,0.07792]
[1767716145481,0.09751827,93540.0,93515.0,0.0202327]
[1767716145683,0.09751827,93540.0,93521.0,0.010695]
[1767716146701,0.01940403,93546.0,93526.0,0.010694]
[1767716147000,0.01940403,93546.0,93516.0,0.09504212]
[1767716147001,0.09096,93554.0,93535.0,0.010693]
[1767716147188,0.09096,93554.0,93532.0,0.010694]
[1767716147687,0.09096,93554.0,93534.0,0.010693]
[1767716148491,0.09096,93554.0,93529.0,0.20623482]
[1767716148492,0.09096,93554.0,93530.0,0.11527482]
[1767716148795,0.060392,93569.0,93530.0,0.11527482]
[1767716148796,0.09096,93561.0,93534.0,0.0202327]
[1767716148995,0.1169223,93562.0,93539.0,0.010693]
[1767716149196,0.1169223,93562.0,93541.0,0.010693]
[1767716149494,0.1169223,93562.0,93529.0,0.09096]
[1767716149495,0.00213747,93569.0,93551.0,0.010691]
[1767716149687,0.0189384,93569.0,93552.0,0.09096]
[1767716149886,0.00213747,93569.0,93552.0,0.09096]
[1767716150598,0.00213747,93569.0,93552.0,0.07896]
[1767716150897,0.01912445,93569.0,93552.0,0.07896]
[1767716151088,0.09965574,93569.0,93552.0,0.07896]
[1767716151591,0.11719913,93569.0,93552.0,0.07896]
[1767716151791,0.09965574,93569.0,93552.0,0.07896]
[1767716152800,0.11713456,93569.0,93552.0,0.07896]
[1767716153095,0.09965574,93569.0,93552.0,0.07896]
[1767716153792,0.09965574,93569.0,93552.0,0.089651]
[1767716154393,0.09965574,93569.0,93552.0,0.07896]
[1767716155999,0.09751827,93565.0,93552.0,0.07896]
[1767716156498,0.09751827,93557.0,93535.0,0.09504212]
[1767716156694,0.11248236,93549.0,93536.0,0.09092]
[1767716157003,0.11248236,93549.0,93529.0,0.010694]
[1767716157004,0.11248236,93547.0,93535.0,0.09092]
[1767716157600,0.09255063,93547.0,93535.0,0.09092]
[1767716157801,0.11248236,93554.0,93535.0,0.09092]
[1767716157993,0.02239752,93553.0,93535.0,0.09092]
[1767716158188,0.09255063,93554.0,93535.0,0.09092]
[1767716158392,0.02239718,93553.0,93535.0,0.082613]
[1767716158691,0.02239718,93552.0,93535.0,0.07192]
[1767716158896,0.02239718,93551.0,93535.0,0.07192]
[1767716159296,0.11494781,93551.0,93529.0,0.010694]
[1767716159495,0.02239718,93550.0,93530.0,0.09092]
[1767716160502,0.02239718,93550.0,93530.0,0.11077318]
[1767716160700,0.02239718,93550.0,93534.0,0.09198034]
[1767716160901,0.11248236,93558.0,93534.0,0.09198034]
[1767716160902,0.02239718,93549.0,93534.0,0.09198034]
[1767716161102,0.09255063,93557.0,93535.0,0.010693]
[1767716161301,0.02240265,93556.0,93535.0,0.02145358]
[1767716161502,0.02240265,93555.0,93535.0,0.02145358]
[1767716161700,0.0224027,93554.0,93535.0,0.02145358]
[1767716161895,0.11132129,93552.0,93530.0,0.09092]
[1767716162100,0.09122489,93548.0,93522.0,0.02145358]
[1767716162302,0.11132129,93542.0,93523.0,0.09092]
[1767716162507,0.11132129,93538.0,93523.0,0.09092]
[1767716162701,0.09122489,93538.0,93523.0,0.09092]
[1767716163005,0.02239921,93537.0,93523.0,0.09092]
[1767716163201,0.0200964,93541.0,93523.0,0.09092]
[1767716163400,0.02264274,93540.0,93526.0,0.1146236]
[1767716163595,0.09122489,93553.0,93526.0,0.1146236]
[1767716163805,0.022642,93552.0,93540.0,0.15880815]
[1767716164006,0.09122489,93567.0,93541.0,0.02145358]
[1767716164206,0.02264414,93566.0,93548.0,0.010692]
[1767716164503,0.02264414,93565.0,93547.0,0.03214558]
[1767716164701,0.02264414,93564.0,93547.0,0.1146236]
[1767716164896,0.02264414,93563.0,93555.0,0.010691]
[1767716165103,0.09122489,93581.0,93557.0,0.010691]
[1767716165498,0.09122489,93581.0,93556.0,0.02145358]
[1767716165898,0.09122489,93581.0,93556.0,0.03214458]
[1767716166296,0.09122489,93581.0,93559.0,0.010691]
[1767716166504,0.08688511,93595.0,93555.0,0.09092]
[1767716166505,0.1485355,93588.0,93561.0,0.1146236]
[1767716166704,0.09122489,93588.0,93562.0,0.02145358]
[1767716166900,0.10845149,93588.0,93562.0,0.02145358]
[1767716167097,0.10845149,93588.0,93556.0,0.010691]
[1767716167098,0.0200964,93583.0,93556.0,0.010691]
[1767716167294,0.09122489,93582.0,93556.0,0.010691]
[1767716167493,0.09122489,93582.0,93559.0,0.010691]
[1767716168108,0.09122489,93582.0,93555.0,0.09092]
[1767716168309,0.11132129,93580.0,93555.0,0.09092]
[1767716168511,0.11132129,93580.0,93560.0,0.01069]
[1767716168710,0.0200964,93587.0,93561.0,0.01069]
[1767716169410,0.11132129,93587.0,93559.0,0.1146236]
[1767716169604,0.0200964,93586.0,93559.0,0.1146236]
[1767716169801,0.09122489,93585.0,93560.0,0.01069]
[1767716170002,0.09122489,93585.0,93563.0,0.01069]
[1767716170312,0.09122489,93579.0,93556.0,0.010691]
[1767716171709,0.0200964,93585.0,93557.0,0.02145358]
[1767716171907,0.0200964,93585.0,93559.0,0.1253146]
[1767716172407,0.09122489,93585.0,93563.0,0.1146236]
[1767716172799,0.09122489,93585.0,93563.0,0.1253136]
[1767716173406,0.09122489,93585.0,93563.0,0.10386002]
[1767716174012,0.09122489,93583.0,93558.0,0.010691]
[1767716174219,0.09122489,93577.0,93558.0,0.010691]
[1767716174715,0.11132129,93576.0,93555.0,0.091611]
[1767716174915,0.09122489,93576.0,93559.0,0.010691]
[1767716175119,0.11132129,93582.0,93559.0,0.010691]
[1767716175311,0.11132129,93582.0,93561.0,0.01069]
[1767716175617,0.03759837,93588.0,93564.0,0.1146236]
[1767716175809,0.09122489,93587.0,93565.0,0.01069]
[1767716176411,0.0200964,93586.0,93559.0,0.010691]
[1767716176717,0.09122489,93583.0,93559.0,0.1146236]
[1767716176903,0.01750197,93588.0,93555.0,0.08092]
[1767716176904,0.11132129,93574.0,93555.0,0.08092]
[1767716177111,0.01750197,93588.0,93555.0,0.08092]
[1767716177112,0.11132129,93572.0,93555.0,0.08092]
[1767716177311,0.02253887,93571.0,93549.0,0.010692]
[1767716177507,0.02253887,93570.0,93551.0,0.010691]
[1767716177703,0.01750197,93588.0,93552.0,0.09092]
[1767716177704,0.13386016,93569.0,93552.0,0.09092]
[1767716177909,0.11132129,93569.0,93552.0,0.09092]
[1767716178216,0.01750197,93588.0,93559.0,0.1146236]
[1767716178217,0.09122489,93584.0,93559.0,0.1146236]
[1767716178419,0.11132129,93572.0,93552.0,0.09092]
[1767716178617,0.11376674,93571.0,93552.0,0.09092]
[1767716178914,0.02254185,93570.0,93552.0,0.09092]
[1767716179121,0.02254185,93570.0,93553.0,0.010691]
[1767716179620,0.09122489,93571.0,93553.0,0.010691]
[1767716180002,0.09122489,93571.0,93552.0,0.09092]
[1767716180003,0.02253782,93570.0,93552.0,0.09092]
[1767716180204,0.02253782,93570.0,93504.0,0.07632013]
[1767716180205,0.0200964,93565.0,93537.0,0.09317002]
[1767716180409,0.11132129,93558.0,93538.0,0.010693]
[1767716180716,0.11132129,93558.0,93540.0,0.09092]
[1767716182019,0.09122489,93558.0,93540.0,0.09092]
[1767716182217,0.0200964,93563.0,93541.0,0.010693]
[1767716182413,0.0774761,93588.0,93540.0,0.09092]
[1767716182414,0.02253907,93562.0,93547.0,0.09317002]
[1767716182717,0.09122489,93581.0,93558.0,0.1146236]
[1767716182915,0.02254051,93580.0,93563.0,0.1146236]
[1767716183115,0.02254051,93579.0,93564.0,0.2055436]
[1767716183314,0.01750197,93588.0,93572.0,0.010689]
[1767716183518,0.09122489,93589.0,93572.0,0.010689]
[1767716183714,0.10844738,93589.0,93569.0,0.010689]
[1767716183915,0.10844738,93589.0,93566.0,0.1253136]
[1767716184620,0.10844738,93589.0,93566.0,0.09317002]
[1767716186014,0.10844738,93589.0,93567.0,0.01069]
[1767716186511,0.09122489,93585.0,93564.0,0.09092]
[1767716186818,0.01722249,93589.0,93557.0,0.09092]
[1767716186819,0.0200964,93568.0,93557.0,0.09092]
[1767716187112,0.0200964,93568.0,93528.0,0.188194]
[1767716187113,0.11132129,93565.0,93552.0,0.09092]
[1767716187719,0.09122489,93565.0,93552.0,0.09092]
[1767716187920,0.11132129,93571.0,93552.0,0.09092]
[1767716188324,0.01722249,93589.0,93552.0,0.09092]
[1767716188325,0.0200964,93577.0,93552.0,0.09092]
[1767716188520,0.09122489,93578.0,93555.0,0.1146236]
[1767716189021,0.09122489,93568.0,93552.0,0.09092]
[1767716189212,0.11132129,93568.0,93552.0,0.09092]
[1767716190024,0.09122489,93568.0,93552.0,0.09092]
[1767716190226,0.09122489,93568.0,93552.0,0.07492]
[1767716190827,0.09122489,93575.0,93552.0,0.07492]
[1767716191926,0.0984638,93571.0,93552.0,0.07492]
[1767716192128,0.11834418,93571.0,93552.0,0.07492]
[1767716194332,0.0984638,93571.0,93552.0,0.07492]
[1767716195233,0.02247107,93570.0,93552.0,0.07492]
[1767716195532,0.02247107,93569.0,93552.0,0.07492]
[1767716195732,0.02247107,93568.0,93552.0,0.07492]
[1767716195935,0.02247107,93567.0,93552.0,0.07492]
[1767716196123,0.02247107,93566.0,93552.0,0.07492]
[1767716196324,0.02247107,93565.0,93552.0,0.07492]
[1767716196524,0.02247107,93564.0,93552.0,0.07492]
[1767716196725,0.02247688,93563.0,93552.0,0.07492]
[1767716196930,0.02247688,93562.0,93552.0,0.07492]
[1767716197120,0.01988038,93568.0,93552.0,0.07492]
[1767716197325,0.02247688,93567.0,93552.0,0.07492]
[1767716197535,0.01193,93570.0,93552.0,0.07492]
[1767716197536,0.02247688,93566.0,93552.0,0.07492]
[1767716197735,0.02247688,93565.0,93552.0,0.07492]
[1767716197934,0.14082106,93564.0,93539.0,0.00213816]
[1767716198134,0.0984638,93559.0,93540.0,0.09092]
[1767716198430,0.01988038,93544.0,93517.0,0.0209802]
[1767716198637,0.0984638,93542.0,93518.0,0.09092]
[1767716198835,0.12094068,93541.0,93518.0,0.09092]
[1767716199034,0.12094068,93540.0,93518.0,0.09092]
[1767716199231,0.12094068,93539.0,93518.0,0.09092]
[1767716199428,0.02247688,93538.0,93518.0,0.09092]
[1767716199933,0.02247688,93538.0,93518.0,0.101615]
[1767716200136,0.02247688,93538.0,93518.0,0.093615]
[1767716200335,0.02247688,93538.0,93520.0,0.010695]
[1767716200535,0.02247688,93537.0,93520.0,0.010695]
[1767716200735,0.02247688,93536.0,93518.0,0.08292]
[1767716200934,0.0984638,93546.0,93518.0,0.08292]
[1767716201142,0.12139298,93545.0,93518.0,0.08292]
[1767716201335,0.0984638,93543.0,93518.0,0.08292]
[1767716201531,0.12139298,93542.0,93518.0,0.08292]
[1767716201732,0.02292918,93541.0,93519.0,0.0209802]
[1767716201928,0.0984638,93542.0,93519.0,0.0209802]
[1767716201929,0.02292918,93540.0,93519.0,0.0209802]
[1767716202133,0.13920888,93539.0,93518.0,0.08292]
[1767716202329,0.0984638,93537.0,93512.0,0.0209802]
[1767716202529,0.02292918,93536.0,93513.0,0.09092]
[1767716202736,0.02292918,93535.0,93517.0,0.010695]
[1767716203040,0.0984638,93544.0,93516.0,0.0209802]
[1767716203041,0.02292918,93534.0,93516.0,0.0209802]
[1767716203243,0.02292918,93533.0,93516.0,0.0209802]
[1767716203444,0.11615747,93542.0,93516.0,0.0209802]
[1767716203632,0.0984638,93540.0,93516.0,0.0209802]
[1767716203832,0.05735755,93552.0,93513.0,0.09092]
[1767716203833,0.11595335,93531.0,93513.0,0.09092]
[1767716204641,0.0984638,93529.0,93509.0,0.00213884]
[1767716204846,0.12137085,93528.0,93510.0,0.09092]
[1767716205048,0.02290705,93527.0,93510.0,0.09092]
[1767716205937,0.02290705,93527.0,93510.0,0.101616]
[1767716206143,0.02290705,93527.0,93510.0,0.09092]
[1767716206347,0.01615763,93528.0,93510.0,0.09092]
[1767716206540,0.09092,93534.0,93510.0,0.09092]
[1767716206735,0.02290018,93533.0,93518.0,0.010695]
[1767716206947,0.01606687,93541.0,93522.0,0.1200436]
[1767716207143,0.0229008,93540.0,93522.0,0.1200436]
[1767716207351,0.0229008,93539.0,93522.0,0.2109636]
[1767716207648,0.0229008,93538.0,93522.0,0.09092]
[1767716207855,0.0229008,93537.0,93522.0,0.09092]
[1767716208046,0.0229008,93536.0,93522.0,0.09092]
[1767716208243,0.0229008,93535.0,93522.0,0.09092]
[1767716208452,0.0229008,93534.0,93522.0,0.09092]
[1767716208664,0.01616334,93541.0,93522.0,0.09092]
[1767716208847,0.02289681,93540.0,93522.0,0.09092]
[1767716209049,0.01671629,93535.0,93522.0,0.09092]
[1767716209254,0.0984638,93536.0,93522.0,0.09092]
[1767716209255,0.0984638,93533.0,93522.0,0.09092]
[1767716209448,0.0228974,93532.0,93522.0,0.09092]
[1767716209651,0.11499253,93521.0,93509.0,0.00213884]
[1767716209855,0.12135935,93520.0,93499.0,0.09092]
[1767716210060,0.0984638,93520.0,93499.0,0.09092]
[1767716211758,0.0984638,93520.0,93499.0,0.101617]
[1767716212161,0.0984638,93520.0,93501.0,0.010697]
[1767716213264,0.0984638,93520.0,93499.0,0.09092]
[1767716213862,0.0984638,93520.0,93500.0,0.010697]
[1767716214559,0.0984638,93504.0,93490.0,0.09096]
[1767716215273,0.0984638,93514.0,93490.0,0.06196]
[1767716215463,0.0984638,93512.0,93490.0,0.06196]
[1767716215664,0.01351289,93509.0,93477.0,0.0990634]
[1767716215963,0.0984638,93500.0,93477.0,0.09096]
[1767716216172,0.0984638,93500.0,93459.0,0.010702]
[1767716216173,0.0984638,93492.0,93468.0,0.0209802]
[1767716216375,0.20121213,93540.0,93473.0,0.09096]
[1767716216376,0.0984638,93490.0,93473.0,0.09096]
[1767716216557,0.11197669,93486.0,93470.0,0.09096]
[1767716217065,0.0984638,93486.0,93470.0,0.09096]
[1767716218864,0.09096,93492.0,93470.0,0.09096]
[1767716219070,0.02283787,93491.0,93470.0,0.09096]
[1767716219267,0.010699,93488.0,93470.0,0.09096]
[1767716219473,0.010698,93491.0,93470.0,0.09096]
[1767716219863,0.010699,93489.0,93470.0,0.09096]
[1767716220062,0.19463535,93492.0,93470.0,0.09096]
[1767716220374,0.01855016,93491.0,93477.0,0.1169059]
[1767716220575,0.18393735,93499.0,93477.0,0.1169059]
[1767716220773,0.09297735,93506.0,93483.0,0.010699]
[1767716220967,0.09096,93505.0,93485.0,0.1169059]
[1767716221769,0.09096,93505.0,93485.0,0.09843432]
[1767716222074,0.09096,93505.0,93469.0,0.010701]
[1767716222075,0.09096,93513.0,93494.0,0.01941014]
[1767716222275,0.01248239,93524.0,93501.0,0.010697]
[1767716222582,0.09096,93521.0,93498.0,0.11805983]
[1767716222875,0.415533,93538.0,93482.0,0.010699]
[1767716222876,0.0900724,93505.0,93482.0,0.010699]
[1767716223072,0.10234424,93501.0,93482.0,0.09096]
[1767716223373,0.09096,93508.0,93482.0,0.07996]
[1767716223575,0.01227184,93516.0,93487.0,0.010699]
[1767716223877,0.10234424,93516.0,93488.0,0.11805983]
[1767716224071,0.10217146,93512.0,93482.0,0.09937014]
[1767716224377,0.010696,93509.0,93484.0,0.010699]
[1767716224678,0.010697,93504.0,93482.0,0.19801983]
[1767716224865,0.10305906,93512.0,93482.0,0.07996]
[1767716224866,0.010697,93501.0,93482.0,0.07996]
[1767716225070,0.010697,93505.0,93482.0,0.07996]
[1767716225576,0.0900724,93507.0,93482.0,0.07996]
[1767716225777,0.0900724,93507.0,93482.0,0.19801983]
[1767716226076,0.0900724,93507.0,93484.0,0.010699]
[1767716226282,0.010695,93517.0,93493.0,0.01941014]
[1767716226573,0.010696,93515.0,93493.0,0.01941014]
[1767716227275,0.09096,93516.0,93493.0,0.11037014]
[1767716228074,0.0900724,93519.0,93495.0,0.11805983]
[1767716228374,0.0900724,93519.0,93493.0,0.09096]
[1767716228375,0.1810324,93519.0,93496.0,0.12875783]
[1767716228578,0.0900724,93519.0,93496.0,0.12875783]
[1767716228983,0.09096,93522.0,93498.0,0.010698]
[1767716229668,0.14939326,93522.0,93500.0,0.010697]
[1767716230278,0.09096,93522.0,93502.0,0.010697]
[1767716230476,0.09096,93525.0,93504.0,0.010697]
[1767716230876,0.09096,93525.0,93504.0,0.09096]
[1767716231070,0.09096,93525.0,93504.0,0.10306714]
[1767716231473,0.09096,93538.0,93516.0,0.01941014]
[1767716231673,0.09096,93538.0,93520.0,0.12875483]
[1767716231886,0.00213816,93539.0,93521.0,0.11805983]
[1767716232384,0.02320032,93538.0,93526.0,0.010694]
[1767716232575,0.02320032,93537.0,93526.0,0.010694]
[1767716232885,0.02320032,93537.0,93511.0,0.010696]
[1767716232886,0.01597084,93544.0,93530.0,0.09864969]